[Event "GrandPrix_29.05"]
[Site "Chess.com"]
[Date "2020.05.29"]
[Round "8"]
[White "KuzubovYuriy"]
[Black "viktorskliarov"]
[Result "1-0"]
[WhiteElo "2406"]
[BlackElo "2206"]
[TimeControl "600+2"]
[EndTime "13:02:18 PDT"]
[Termination "KuzubovYuriy won by resignation"]

1. d4 {[%clk 0:10:01.9]} 1... Nf6 {[%clk 0:10:00.6]} 2. c4 {[%clk 0:10:02.8]}
2... e6 {[%clk 0:10:01.8]} 3. Nf3 {[%clk 0:10:03.5]} 3... b6 {[%clk 0:10:02.9]}
4. g3 {[%clk 0:10:04]} 4... Bb7 {[%clk 0:10:04.3]} 5. Bg2 {[%clk 0:10:04]} 5...
Be7 {[%clk 0:10:05.7]} 6. Nc3 {[%clk 0:10:04.7]} 6... O-O {[%clk 0:10:06.6]} 7.
Qc2 {[%clk 0:09:57.5]} 7... d5 {[%clk 0:10:06.7]} 8. cxd5 {[%clk 0:09:46.9]}
8... Nxd5 {[%clk 0:09:53.6]} 9. Nxd5 {[%clk 0:09:47.3]} 9... exd5 {[%clk
0:09:50]} 10. Bf4 {[%clk 0:09:33.1]} 10... c6 {[%clk 0:09:04.1]} 11. h4 {[%clk
0:08:52.1]} 11... Nd7 {[%clk 0:07:31.7]} 12. Ng5 {[%clk 0:08:50.5]} 12... Nf6
{[%clk 0:07:31.3]} 13. Be5 {[%clk 0:08:51]} 13... Bb4+ {[%clk 0:07:03.8]} 14.
Kf1 {[%clk 0:08:49.8]} 14... Re8 {[%clk 0:07:05.1]} 15. Bxf6 {[%clk 0:08:26.2]}
15... Qxf6 {[%clk 0:07:04.8]} 16. Qxh7+ {[%clk 0:08:27.2]} 16... Kf8 {[%clk
0:07:06.2]} 17. Qd3 {[%clk 0:08:22.3]} 17... Kg8 {[%clk 0:06:50.6]} 18. Bf3
{[%clk 0:08:00.5]} 18... a5 {[%clk 0:06:40.6]} 19. Kg2 {[%clk 0:07:42.5]} 19...
Ba6 {[%clk 0:06:40]} 20. Qh7+ {[%clk 0:07:28.8]} 20... Kf8 {[%clk 0:06:40.3]}
21. e3 {[%clk 0:06:26.7]} 21... a4 {[%clk 0:04:26.1]} 22. Rac1 {[%clk
0:06:19.9]} 22... a3 {[%clk 0:03:49.9]} 23. bxa3 {[%clk 0:05:25.9]} 23... Bxa3
{[%clk 0:03:47.4]} 24. Rb1 {[%clk 0:03:45]} 24... g6 {[%clk 0:01:22.8]} 25. Qh6+
{[%clk 0:03:05.1]} 25... Ke7 {[%clk 0:01:21.8]} 26. Nh7 {[%clk 0:03:04.6]} 26...
Rh8 {[%clk 0:01:06.7]} 27. Nxf6 {[%clk 0:03:03.9]} 27... Rxh6 {[%clk 0:01:07.6]}
28. Ng4 {[%clk 0:03:05.5]} 28... Rhh8 {[%clk 0:00:47.9]} 29. Rxb6 {[%clk
0:03:04.4]} 29... Bc4 {[%clk 0:00:41.7]} 30. Ne5 {[%clk 0:02:52.2]} 30... Bxa2
{[%clk 0:00:38.1]} 31. Rb7+ {[%clk 0:02:41.8]} 31... Ke6 {[%clk 0:00:21.1]} 32.
Nxf7 {[%clk 0:02:39.3]} 32... Rhb8 {[%clk 0:00:19.2]} 33. Ng5+ {[%clk
0:02:29.7]} 33... Kd6 {[%clk 0:00:19.8]} 34. Rg7 {[%clk 0:02:30.4]} 34... Bb1
{[%clk 0:00:19]} 35. h5 {[%clk 0:02:01.2]} 35... c5 {[%clk 0:00:12.3]} 36. dxc5+
{[%clk 0:02:00.7]} 36... Kxc5 {[%clk 0:00:12.7]} 37. hxg6 {[%clk 0:01:57.1]}
37... Bb2 {[%clk 0:00:13.5]} 38. Rxb1 {[%clk 0:01:48.8]} 38... Bxg7 {[%clk
0:00:13.6]} 39. Rxb8 {[%clk 0:01:49.6]} 39... Rxb8 {[%clk 0:00:14.7]} 40. Ne6+
{[%clk 0:01:51.2]} 40... Kc4 {[%clk 0:00:14.4]} 41. Nxg7 {[%clk 0:01:53.1]}
41... Rg8 {[%clk 0:00:15.5]} 42. Ne6 {[%clk 0:01:50.2]} 42... Rxg6 {[%clk
0:00:16.3]} 43. Bxd5+ {[%clk 0:01:50.7]} 1-0

[Event "GrandPrix_29.05"]
[Site "Chess.com"]
[Date "2020.05.29"]
[Round "8"]
[White "Nitzan_Steinberg"]
[Black "ValeriyGrinev"]
[Result "1-0"]
[WhiteElo "2343"]
[BlackElo "2094"]
[TimeControl "600+2"]
[EndTime "13:02:19 PDT"]
[Termination "Nitzan_Steinberg won by resignation"]

1. e4 {[%clk 0:10:01.9]} 1... c5 {[%clk 0:10:00.3]} 2. Nf3 {[%clk 0:10:02.8]}
2... e6 {[%clk 0:10:01.4]} 3. d4 {[%clk 0:10:03.7]} 3... cxd4 {[%clk 0:10:02.7]}
4. Nxd4 {[%clk 0:10:05.6]} 4... a6 {[%clk 0:10:04.1]} 5. c4 {[%clk 0:10:06.3]}
5... Nf6 {[%clk 0:10:04.3]} 6. Nc3 {[%clk 0:10:07.6]} 6... Qc7 {[%clk
0:10:04.9]} 7. Be2 {[%clk 0:10:08.3]} 7... Bb4 {[%clk 0:10:05.7]} 8. Qd3 {[%clk
0:09:56.8]} 8... d6 {[%clk 0:10:02.1]} 9. Nc2 {[%clk 0:09:47.9]} 9... Bc5 {[%clk
0:09:54.1]} 10. b4 {[%clk 0:09:41.1]} 10... Ba7 {[%clk 0:09:48.9]} 11. Be3
{[%clk 0:09:34.3]} 11... Bxe3 {[%clk 0:09:28.2]} 12. Nxe3 {[%clk 0:09:18.9]}
12... Nc6 {[%clk 0:09:23.9]} 13. a3 {[%clk 0:09:18.8]} 13... O-O {[%clk
0:08:46.9]} 14. O-O {[%clk 0:09:18.9]} 14... b6 {[%clk 0:08:17.2]} 15. f4 {[%clk
0:09:14.1]} 15... Bb7 {[%clk 0:08:13.4]} 16. g3 {[%clk 0:09:00.1]} 16... Rac8
{[%clk 0:07:58.1]} 17. Rac1 {[%clk 0:09:00.3]} 17... Ne7 {[%clk 0:07:52.8]} 18.
Rfd1 {[%clk 0:08:57.3]} 18... Rfd8 {[%clk 0:07:51.3]} 19. Bf3 {[%clk 0:08:48]}
19... Ba8 {[%clk 0:07:19.8]} 20. Kg2 {[%clk 0:08:45.3]} 20... Qb8 {[%clk
0:06:59.5]} 21. h4 {[%clk 0:08:43.6]} 21... Bc6 {[%clk 0:06:28.9]} 22. h5 {[%clk
0:08:39.9]} 22... h6 {[%clk 0:06:27.6]} 23. Ng4 {[%clk 0:08:13.9]} 23... Nxg4
{[%clk 0:06:20.6]} 24. Bxg4 {[%clk 0:08:14.8]} 24... b5 {[%clk 0:05:41.9]} 25.
cxb5 {[%clk 0:08:03.9]} 25... axb5 {[%clk 0:05:43.8]} 26. Bf3 {[%clk 0:08:05]}
26... d5 {[%clk 0:05:10]} 27. e5 {[%clk 0:08:04.7]} 27... d4 {[%clk 0:04:48.8]}
28. Ne4 {[%clk 0:07:52.8]} 28... Nf5 {[%clk 0:04:47.1]} 29. Re1 {[%clk
0:07:34.9]} 29... Ne3+ {[%clk 0:04:29.7]} 30. Kf2 {[%clk 0:07:34.6]} 30... Bxe4
{[%clk 0:04:13.8]} 31. Bxe4 {[%clk 0:07:29.6]} 31... Rc4 {[%clk 0:04:15.1]} 32.
Qd2 {[%clk 0:06:55.3]} 32... Qb6 {[%clk 0:04:04.6]} 33. Bd3 {[%clk 0:06:40.7]}
33... Qc6 {[%clk 0:03:49.1]} 34. Kg1 {[%clk 0:06:41.5]} 34... Rxc1 {[%clk
0:02:17.8]} 35. Rxc1 {[%clk 0:06:41]} 35... Qf3 {[%clk 0:02:19.7]} 36. Qf2
{[%clk 0:06:38]} 36... Qxh5 {[%clk 0:02:20.9]} 37. Be2 {[%clk 0:05:28.2]} 37...
Qf5 {[%clk 0:02:05]} 38. Bxb5 {[%clk 0:05:28.9]} 38... Qe4 {[%clk 0:02:05.9]}
39. Bc6 {[%clk 0:05:09.9]} 39... Qd3 {[%clk 0:01:54]} 40. b5 {[%clk 0:04:26.9]}
40... Ng4 {[%clk 0:01:34.1]} 41. Qe1 {[%clk 0:04:10.6]} 41... Qxa3 {[%clk
0:01:34.9]} 42. Rd1 {[%clk 0:03:37.2]} 42... d3 {[%clk 0:01:27.7]} 43. Rd2
{[%clk 0:03:15]} 43... Qc5+ {[%clk 0:01:22.2]} 44. Kh1 {[%clk 0:03:16.1]} 44...
Qd4 {[%clk 0:01:01]} 45. Be4 {[%clk 0:02:52]} 45... Ne3 {[%clk 0:00:46.7]} 46.
Bxd3 {[%clk 0:02:46.8]} 46... Nc4 {[%clk 0:00:47.4]} 47. Bh7+ {[%clk 0:02:46.9]}
47... Kxh7 {[%clk 0:00:45.4]} 48. Rxd4 {[%clk 0:02:48.1]} 48... Rxd4 {[%clk
0:00:47.1]} 49. Qc3 {[%clk 0:02:35.8]} 49... Rd1+ {[%clk 0:00:24.4]} 50. Kg2
{[%clk 0:02:35.2]} 50... Nd2 {[%clk 0:00:08.7]} 51. Qc2+ {[%clk 0:02:34]} 1-0

[Event "GrandPrix_29.05"]
[Site "Chess.com"]
[Date "2020.05.29"]
[Round "8"]
[White "Mizner"]
[Black "SpasKozhuharov"]
[Result "1-0"]
[WhiteElo "2148"]
[BlackElo "2092"]
[TimeControl "600+2"]
[EndTime "13:02:35 PDT"]
[Termination "Mizner won on time"]

1. d4 {[%clk 0:10:01.9]} 1... d5 {[%clk 0:09:59.5]} 2. c4 {[%clk 0:10:02.8]}
2... dxc4 {[%clk 0:10:00.6]} 3. Nf3 {[%clk 0:10:02.8]} 3... a6 {[%clk
0:09:59.4]} 4. e3 {[%clk 0:10:01.2]} 4... e6 {[%clk 0:09:59.1]} 5. Bxc4 {[%clk
0:10:01.5]} 5... Nf6 {[%clk 0:10:01]} 6. O-O {[%clk 0:10:02.2]} 6... b5 {[%clk
0:10:01]} 7. Be2 {[%clk 0:10:01.4]} 7... Bb7 {[%clk 0:10:02.9]} 8. a4 {[%clk
0:09:53.8]} 8... b4 {[%clk 0:10:03.8]} 9. Ne5 {[%clk 0:09:20.4]} 9... c5 {[%clk
0:09:57.7]} 10. dxc5 {[%clk 0:09:09.9]} 10... Qxd1 {[%clk 0:09:53.8]} 11. Rxd1
{[%clk 0:09:10.7]} 11... Bxc5 {[%clk 0:09:55]} 12. Nd2 {[%clk 0:09:03.5]} 12...
Nbd7 {[%clk 0:09:54.7]} 13. Nd3 {[%clk 0:08:57.8]} 13... Be7 {[%clk 0:09:52]}
14. a5 {[%clk 0:08:53.3]} 14... O-O {[%clk 0:09:43.4]} 15. Nc4 {[%clk
0:08:41.2]} 15... Rfc8 {[%clk 0:09:40.3]} 16. b3 {[%clk 0:08:40.9]} 16... Nd5
{[%clk 0:09:37.2]} 17. Bf3 {[%clk 0:08:06.5]} 17... Rab8 {[%clk 0:09:09.6]} 18.
Bd2 {[%clk 0:08:05.9]} 18... Nc3 {[%clk 0:08:52.7]} 19. Bxb7 {[%clk 0:07:57.3]}
19... Rxb7 {[%clk 0:08:51.4]} 20. Re1 {[%clk 0:07:43.1]} 20... Nc5 {[%clk
0:08:25.6]} 21. Nxc5 {[%clk 0:07:09.6]} 21... Bxc5 {[%clk 0:08:22.4]} 22. Kf1
{[%clk 0:06:59.5]} 22... Rd8 {[%clk 0:08:11.7]} 23. Rec1 {[%clk 0:06:57.6]}
23... Ne4 {[%clk 0:07:11]} 24. Be1 {[%clk 0:06:57.3]} 24... Rd3 {[%clk
0:07:07.7]} 25. Ne5 {[%clk 0:06:10.5]} 25... Rd5 {[%clk 0:06:56.7]} 26. Nc6
{[%clk 0:06:11.3]} 26... f6 {[%clk 0:06:20.7]} 27. Rc4 {[%clk 0:05:25.2]} 27...
Nd6 {[%clk 0:06:13.1]} 28. Rc2 {[%clk 0:05:24.6]} 28... Ne4 {[%clk 0:05:42.7]}
29. Rac1 {[%clk 0:04:44.8]} 29... Bf8 {[%clk 0:05:38.4]} 30. Rc4 {[%clk
0:04:21.8]} 30... Nd2+ {[%clk 0:05:23.9]} 31. Bxd2 {[%clk 0:04:21.6]} 31... Rxd2
{[%clk 0:05:25.2]} 32. Rd4 {[%clk 0:03:57.1]} 32... Rb2 {[%clk 0:05:16.8]} 33.
Nd8 {[%clk 0:03:43.1]} 33... Rb8 {[%clk 0:04:47.9]} 34. Rd3 {[%clk 0:03:12.7]}
34... e5 {[%clk 0:04:29.8]} 35. Rc7 {[%clk 0:03:13.1]} 35... e4 {[%clk
0:04:10.6]} 36. Rdd7 {[%clk 0:02:42.1]} 36... Rxb3 {[%clk 0:04:04.9]} 37. Ne6
{[%clk 0:02:34]} 37... Rc3 {[%clk 0:04:02.5]} 38. Rb7 {[%clk 0:02:10.1]} 38...
Rbc8 {[%clk 0:02:22.6]} 39. g4 {[%clk 0:02:00.1]} 39... Rb3 {[%clk 0:00:16.9]}
40. Nxf8 {[%clk 0:01:52.1]} 40... Rc1+ {[%clk 0:00:13.9]} 41. Kg2 {[%clk
0:01:52.3]} 41... Rb2 {[%clk 0:00:13.3]} 42. Ne6 {[%clk 0:01:44]} 1-0

[Event "GrandPrix_29.05"]
[Site "Chess.com"]
[Date "2020.05.29"]
[Round "8"]
[White "bedgasm"]
[Black "Onischuk_V"]
[Result "0-1"]
[WhiteElo "2250"]
[BlackElo "2453"]
[TimeControl "600+2"]
[EndTime "13:02:38 PDT"]
[Termination "Onischuk_V won on time"]

1. e4 {[%clk 0:09:57.5]} 1... d6 {[%clk 0:10:00.9]} 2. d4 {[%clk 0:09:57.9]}
2... Nf6 {[%clk 0:10:02.5]} 3. Nc3 {[%clk 0:09:59]} 3... g6 {[%clk 0:10:04]} 4.
Nf3 {[%clk 0:09:59.3]} 4... Bg7 {[%clk 0:10:05.4]} 5. Be2 {[%clk 0:10:00.6]}
5... O-O {[%clk 0:10:06.8]} 6. O-O {[%clk 0:10:01.8]} 6... Nc6 {[%clk
0:10:07.8]} 7. d5 {[%clk 0:10:02]} 7... Ne5 {[%clk 0:09:58.3]} 8. Nxe5 {[%clk
0:09:59.9]} 8... dxe5 {[%clk 0:09:59.1]} 9. f4 {[%clk 0:09:23.7]} 9... exf4
{[%clk 0:09:54.8]} 10. Bxf4 {[%clk 0:09:25.6]} 10... Nd7 {[%clk 0:09:56.1]} 11.
Qd2 {[%clk 0:09:09.1]} 11... Ne5 {[%clk 0:09:56.9]} 12. Bh6 {[%clk 0:09:02.5]}
12... Qd6 {[%clk 0:09:57.7]} 13. Bxg7 {[%clk 0:08:47.8]} 13... Kxg7 {[%clk
0:09:58.1]} 14. Qe3 {[%clk 0:08:38.8]} 14... Bd7 {[%clk 0:09:57.8]} 15. Rad1
{[%clk 0:08:31]} 15... Qb6 {[%clk 0:09:54.5]} 16. Qxb6 {[%clk 0:08:29.5]} 16...
cxb6 {[%clk 0:09:54.2]} 17. Nb5 {[%clk 0:08:01]} 17... Bxb5 {[%clk 0:09:52.9]}
18. Bxb5 {[%clk 0:08:01.2]} 18... Rfc8 {[%clk 0:09:53.9]} 19. c3 {[%clk
0:07:36]} 19... a6 {[%clk 0:09:50.7]} 20. Be2 {[%clk 0:07:35.2]} 20... b5 {[%clk
0:09:52]} 21. Rd4 {[%clk 0:07:20.8]} 21... Rc7 {[%clk 0:09:46.5]} 22. Kf2 {[%clk
0:06:54.9]} 22... Rd8 {[%clk 0:09:39.1]} 23. Ke3 {[%clk 0:06:49]} 23... h5
{[%clk 0:09:40.1]} 24. a4 {[%clk 0:06:34.7]} 24... bxa4 {[%clk 0:09:39.3]} 25.
Rxa4 {[%clk 0:06:33.7]} 25... Rd6 {[%clk 0:09:39]} 26. h3 {[%clk 0:05:08.3]}
26... h4 {[%clk 0:09:35.7]} 27. Rc1 {[%clk 0:04:58.6]} 27... e6 {[%clk 0:09:27]}
28. Rd4 {[%clk 0:04:45.5]} 28... exd5 {[%clk 0:09:23.8]} 29. exd5 {[%clk
0:04:28.7]} 29... b5 {[%clk 0:09:13.7]} 30. Rxh4 {[%clk 0:04:23.9]} 30... Rxd5
{[%clk 0:09:14.6]} 31. Rd4 {[%clk 0:04:23.9]} 31... Rdc5 {[%clk 0:09:02.1]} 32.
Rd6 {[%clk 0:04:21.5]} 32... a5 {[%clk 0:08:57.2]} 33. Ra1 {[%clk 0:04:13]}
33... b4 {[%clk 0:08:57.7]} 34. cxb4 {[%clk 0:04:09]} 34... axb4 {[%clk
0:08:58.6]} 35. Rad1 {[%clk 0:04:03.5]} 35... Re7 {[%clk 0:08:51.8]} 36. Kd2
{[%clk 0:03:59.8]} 36... Nc6 {[%clk 0:08:23.3]} 37. b3 {[%clk 0:03:15.9]} 37...
Na5 {[%clk 0:08:18.2]} 38. Rd3 {[%clk 0:03:15]} 38... Rec7 {[%clk 0:08:17.5]}
39. Ra1 {[%clk 0:03:08.9]} 39... Nc6 {[%clk 0:08:11.9]} 40. Ra4 {[%clk
0:02:57.8]} 40... Ne5 {[%clk 0:07:59.8]} 41. Re3 {[%clk 0:02:52.5]} 41... Rc2+
{[%clk 0:07:33.8]} 42. Ke1 {[%clk 0:02:51.3]} 42... Nc6 {[%clk 0:07:34.3]} 43.
Kf2 {[%clk 0:02:20.5]} 43... Rd7 {[%clk 0:07:25.8]} 44. Kg1 {[%clk 0:02:14.8]}
44... Rdd2 {[%clk 0:07:03.3]} 45. Bf3 {[%clk 0:02:14.5]} 45... Nd4 {[%clk
0:07:02.1]} 46. Rxb4 {[%clk 0:01:44.9]} 46... Nxf3+ {[%clk 0:07:01]} 47. Rxf3
{[%clk 0:01:42.1]} 47... Rxg2+ {[%clk 0:07:01.5]} 48. Kf1 {[%clk 0:01:43]} 48...
f5 {[%clk 0:06:56.9]} 49. Rc4 {[%clk 0:01:40.7]} 49... Rb2 {[%clk 0:06:57.2]}
50. b4 {[%clk 0:01:38.7]} 50... Rh2 {[%clk 0:06:57.7]} 51. Kg1 {[%clk
0:01:36.8]} 51... Rhd2 {[%clk 0:06:58.6]} 52. Rcf4 {[%clk 0:01:29.9]} 52... Kh6
{[%clk 0:06:53.3]} 53. Rf2 {[%clk 0:01:23.5]} 53... Rxf2 {[%clk 0:06:53]} 54.
Rxf2 {[%clk 0:01:24.6]} 54... Rxb4 {[%clk 0:06:54.2]} 55. Rc2 {[%clk 0:01:22.7]}
55... Kh5 {[%clk 0:06:52.4]} 56. Rc6 {[%clk 0:01:20.1]} 56... Rb2 {[%clk
0:06:42.7]} 57. Rf6 {[%clk 0:01:11.1]} 57... Kg5 {[%clk 0:06:38.3]} 58. Ra6
{[%clk 0:01:06.6]} 58... f4 {[%clk 0:06:32.4]} 59. h4+ {[%clk 0:01:03.9]} 59...
Kf5 {[%clk 0:06:14]} 60. Ra5+ {[%clk 0:01:01.3]} 60... Ke4 {[%clk 0:06:13.3]}
61. Rg5 {[%clk 0:00:55]} 61... Rb6 {[%clk 0:05:35.9]} 62. h5 {[%clk 0:00:50.4]}
62... gxh5 {[%clk 0:05:35]} 63. Rxh5 {[%clk 0:00:52.3]} 63... Ke3 {[%clk
0:05:36]} 64. Re5+ {[%clk 0:00:28.3]} 64... Kf3 {[%clk 0:05:35.8]} 65. Ra5
{[%clk 0:00:28.9]} 65... Rb1+ {[%clk 0:05:34.9]} 66. Kh2 {[%clk 0:00:29]} 66...
Kf2 {[%clk 0:05:26.9]} 67. Ra2+ {[%clk 0:00:27.6]} 67... Kf1 {[%clk 0:05:24.3]}
68. Rc2 {[%clk 0:00:24.6]} 68... Ra1 {[%clk 0:05:17.3]} 69. Rb2 {[%clk
0:00:21.8]} 69... Ra3 {[%clk 0:05:16.3]} 70. Rc2 {[%clk 0:00:20.2]} 70... f3
{[%clk 0:05:11.1]} 71. Rc1+ {[%clk 0:00:19.5]} 71... Ke2 {[%clk 0:05:12]} 72.
Kg3 {[%clk 0:00:16]} 72... f2+ {[%clk 0:04:42.8]} 73. Kg2 {[%clk 0:00:16.3]}
73... Ra2 {[%clk 0:04:42.8]} 74. Rf1 {[%clk 0:00:07.4]} 74... Ke3 {[%clk
0:04:42.8]} 75. Rb1 {[%clk 0:00:06.4]} 75... Rd2 {[%clk 0:04:43.3]} 76. Rf1
{[%clk 0:00:05.9]} 76... Re2 {[%clk 0:04:43]} 77. Kg3 {[%clk 0:00:04.5]} 77...
Ra2 {[%clk 0:04:40.7]} 78. Kg2 {[%clk 0:00:05.9]} 78... Rb2 {[%clk 0:04:40.9]}
79. Rd1 {[%clk 0:00:05.2]} 79... Rb8 {[%clk 0:04:39.8]} 80. Kf1 {[%clk
0:00:02.2]} 80... Rg8 {[%clk 0:04:37.1]} 0-1

[Event "GrandPrix_29.05"]
[Site "Chess.com"]
[Date "2020.05.29"]
[Round "8"]
[White "Jan1401"]
[Black "ALeks_Ivlev"]
[Result "1-0"]
[WhiteElo "2200"]
[BlackElo "2045"]
[TimeControl "600+2"]
[EndTime "13:02:48 PDT"]
[Termination "Jan1401 won by resignation"]

1. e4 {[%clk 0:10:00.8]} 1... c5 {[%clk 0:09:58.9]} 2. Nf3 {[%clk 0:10:01.7]}
2... d6 {[%clk 0:09:59.6]} 3. Bb5+ {[%clk 0:10:01.3]} 3... Nd7 {[%clk
0:09:58.5]} 4. O-O {[%clk 0:10:01.6]} 4... Nf6 {[%clk 0:09:52.7]} 5. Re1 {[%clk
0:10:01.2]} 5... a6 {[%clk 0:09:50.7]} 6. Bd3 {[%clk 0:10:01.8]} 6... g6 {[%clk
0:09:48]} 7. c3 {[%clk 0:10:00.3]} 7... Bg7 {[%clk 0:09:48.8]} 8. Bf1 {[%clk
0:09:58.5]} 8... O-O {[%clk 0:09:49.2]} 9. d4 {[%clk 0:09:59.3]} 9... cxd4
{[%clk 0:09:25.3]} 10. cxd4 {[%clk 0:09:59.5]} 10... d5 {[%clk 0:09:25.9]} 11.
e5 {[%clk 0:09:54.2]} 11... Ne4 {[%clk 0:09:25.8]} 12. Nbd2 {[%clk 0:09:44.1]}
12... Nxd2 {[%clk 0:09:10.2]} 13. Bxd2 {[%clk 0:09:43.9]} 13... Nb8 {[%clk
0:09:10.7]} 14. h3 {[%clk 0:09:25.9]} 14... Nc6 {[%clk 0:09:09.4]} 15. a4 {[%clk
0:09:19.6]} 15... Bf5 {[%clk 0:09:00.9]} 16. b4 {[%clk 0:09:05.1]} 16... Be4
{[%clk 0:08:55.8]} 17. Bc3 {[%clk 0:09:03.3]} 17... Rc8 {[%clk 0:08:44.6]} 18.
Ra3 {[%clk 0:08:08.3]} 18... Qb6 {[%clk 0:08:20.7]} 19. Nd2 {[%clk 0:07:57.7]}
19... Bf5 {[%clk 0:08:04.9]} 20. Nf3 {[%clk 0:07:52.5]} 20... a5 {[%clk
0:07:39.2]} 21. bxa5 {[%clk 0:07:14.7]} 21... Nxa5 {[%clk 0:07:37.7]} 22. Bb5
{[%clk 0:07:12.7]} 22... Nc4 {[%clk 0:07:25.5]} 23. Rb3 {[%clk 0:07:12]} 23...
Qc7 {[%clk 0:07:03.5]} 24. Bb4 {[%clk 0:06:44.2]} 24... Qd8 {[%clk 0:04:22.7]}
25. Qe2 {[%clk 0:06:16.1]} 25... Bd7 {[%clk 0:03:32.7]} 26. Ng5 {[%clk
0:05:36.3]} 26... Bxb5 {[%clk 0:03:24.3]} 27. axb5 {[%clk 0:05:37.2]} 27... Qd7
{[%clk 0:01:48.6]} 28. Nxf7 {[%clk 0:04:25.6]} 28... Qxb5 {[%clk 0:00:42.5]} 29.
Ng5 {[%clk 0:04:17.5]} 29... Qa4 {[%clk 0:00:42.5]} 30. Rbb1 {[%clk 0:04:10.7]}
30... Rce8 {[%clk 0:00:42]} 31. Qg4 {[%clk 0:03:36.9]} 31... Qc6 {[%clk
0:00:39.6]} 32. Qh4 {[%clk 0:03:20.5]} 32... h6 {[%clk 0:00:39.2]} 33. Nf3
{[%clk 0:03:20.8]} 33... Qe6 {[%clk 0:00:36.8]} 34. Qg3 {[%clk 0:03:16.3]} 34...
Kh7 {[%clk 0:00:36.2]} 35. Nh4 {[%clk 0:03:09.2]} 35... g5 {[%clk 0:00:35.8]}
36. Qd3+ {[%clk 0:03:08.6]} 36... Kg8 {[%clk 0:00:35.2]} 37. Ng6 {[%clk
0:02:59.3]} 37... Rf7 {[%clk 0:00:27.4]} 38. f4 {[%clk 0:02:55]} 38... gxf4
{[%clk 0:00:26.9]} 39. Rf1 {[%clk 0:02:55.5]} 39... f3 {[%clk 0:00:23.4]} 40.
Kh2 {[%clk 0:02:21.2]} 40... fxg2 {[%clk 0:00:23.6]} 41. Kxg2 {[%clk 0:02:22.2]}
41... b5 {[%clk 0:00:20.4]} 42. Rxf7 {[%clk 0:02:20.8]} 42... Qxf7 {[%clk
0:00:21.7]} 43. Rf1 {[%clk 0:02:20.1]} 43... Qe6 {[%clk 0:00:23.1]} 44. Kh2
{[%clk 0:02:12.6]} 44... Nb2 {[%clk 0:00:16.4]} 45. Qc2 {[%clk 0:02:08.3]} 45...
Rc8 {[%clk 0:00:17.2]} 46. Qxc8+ {[%clk 0:02:02.1]} 46... Qxc8 {[%clk
0:00:17.8]} 47. Nxe7+ {[%clk 0:02:03.2]} 47... Kh7 {[%clk 0:00:19.7]} 48. Nxc8
{[%clk 0:02:04.3]} 48... Nd3 {[%clk 0:00:20.8]} 49. Be7 {[%clk 0:02:02.2]} 49...
Kg6 {[%clk 0:00:21]} 50. Bf6 {[%clk 0:01:58.5]} 50... Bf8 {[%clk 0:00:22]} 51.
Ne7+ {[%clk 0:01:58.3]} 51... Kf7 {[%clk 0:00:23]} 52. Nxd5 {[%clk 0:01:58.6]}
52... Ke6 {[%clk 0:00:24.3]} 53. Nf4+ {[%clk 0:01:58.3]} 1-0

[Event "GrandPrix_29.05"]
[Site "Chess.com"]
[Date "2020.05.29"]
[Round "8"]
[White "SmirnovTimofey2000"]
[Black "Rakhmanov_Aleksandr"]
[Result "0-1"]
[WhiteElo "2215"]
[BlackElo "2428"]
[TimeControl "600+2"]
[EndTime "13:02:53 PDT"]
[Termination "Rakhmanov_Aleksandr won by resignation"]

1. e4 {[%clk 0:10:00.5]} 1... c5 {[%clk 0:09:59.6]} 2. Nf3 {[%clk 0:10:00.8]}
2... Nf6 {[%clk 0:10:00.5]} 3. Nc3 {[%clk 0:10:00.1]} 3... d5 {[%clk 0:10:01]}
4. exd5 {[%clk 0:09:41.6]} 4... Nxd5 {[%clk 0:10:02.9]} 5. Nxd5 {[%clk
0:09:32.9]} 5... Qxd5 {[%clk 0:10:04.8]} 6. d4 {[%clk 0:09:32.7]} 6... Nc6
{[%clk 0:10:02.7]} 7. Be3 {[%clk 0:09:20.8]} 7... cxd4 {[%clk 0:10:00.9]} 8.
Nxd4 {[%clk 0:09:18.1]} 8... a6 {[%clk 0:10:01.1]} 9. c3 {[%clk 0:08:34.5]} 9...
e5 {[%clk 0:09:57.1]} 10. Nb3 {[%clk 0:08:33.3]} 10... Be6 {[%clk 0:09:54.9]}
11. Qxd5 {[%clk 0:08:32.7]} 11... Bxd5 {[%clk 0:09:56.8]} 12. O-O-O {[%clk
0:08:32.4]} 12... O-O-O {[%clk 0:09:23.7]} 13. Bb6 {[%clk 0:08:26]} 13... Rd7
{[%clk 0:09:19.9]} 14. Bd3 {[%clk 0:08:01.9]} 14... g6 {[%clk 0:08:58.8]} 15. f3
{[%clk 0:08:00.8]} 15... Be7 {[%clk 0:08:45.8]} 16. Be4 {[%clk 0:07:50]} 16...
Bxe4 {[%clk 0:08:29.6]} 17. fxe4 {[%clk 0:07:51.9]} 17... Rxd1+ {[%clk
0:08:22.6]} 18. Rxd1 {[%clk 0:07:45.6]} 18... f5 {[%clk 0:08:23.6]} 19. Rf1
{[%clk 0:07:22.6]} 19... Rf8 {[%clk 0:08:15.2]} 20. Kc2 {[%clk 0:07:07.9]} 20...
Kd7 {[%clk 0:08:12.9]} 21. Nd2 {[%clk 0:07:01]} 21... Ke6 {[%clk 0:08:08.6]} 22.
b4 {[%clk 0:06:58.2]} 22... Nb8 {[%clk 0:07:53.3]} 23. a4 {[%clk 0:06:51.9]}
23... Nd7 {[%clk 0:07:53.1]} 24. Bg1 {[%clk 0:06:51.5]} 24... Nf6 {[%clk
0:07:43.4]} 25. exf5+ {[%clk 0:06:44.5]} 25... gxf5 {[%clk 0:07:45.3]} 26. Nf3
{[%clk 0:06:45.5]} 26... Ne4 {[%clk 0:07:35.8]} 27. Kb3 {[%clk 0:04:26.7]} 27...
Rd8 {[%clk 0:06:52]} 28. Bb6 {[%clk 0:03:43.7]} 28... Rd3 {[%clk 0:06:47.2]} 29.
Rc1 {[%clk 0:03:43.9]} 29... h5 {[%clk 0:06:07.2]} 30. b5 {[%clk 0:02:29.5]}
30... h4 {[%clk 0:05:27.3]} 31. h3 {[%clk 0:02:26.5]} 31... f4 {[%clk
0:05:19.7]} 32. Kc4 {[%clk 0:01:43.2]} 32... Rd6 {[%clk 0:04:53.1]} 33. Re1
{[%clk 0:00:27.4]} 33... Nd2+ {[%clk 0:04:08.5]} 34. Nxd2 {[%clk 0:00:27.6]}
34... Rxd2 {[%clk 0:04:10.4]} 35. Rg1 {[%clk 0:00:24.2]} 35... Ra2 {[%clk
0:03:43.5]} 36. Kb3 {[%clk 0:00:21.6]} 36... Ra3+ {[%clk 0:03:42.8]} 37. Kc2
{[%clk 0:00:17.3]} 37... Rxa4 {[%clk 0:03:44.1]} 38. bxa6 {[%clk 0:00:18.5]}
38... Ra2+ {[%clk 0:02:42.8]} 39. Kb3 {[%clk 0:00:13.6]} 39... Rxa6 {[%clk
0:02:36.3]} 40. Bf2 {[%clk 0:00:14.7]} 40... Ra3+ {[%clk 0:02:32.2]} 41. Kb2
{[%clk 0:00:15.3]} 41... Ra4 {[%clk 0:02:33.5]} 42. Re1 {[%clk 0:00:09.8]} 42...
b5 {[%clk 0:02:29.1]} 43. Kb3 {[%clk 0:00:10.1]} 43... Ra3+ {[%clk 0:02:05.4]}
44. Kb2 {[%clk 0:00:10.6]} 44... Ra8 {[%clk 0:02:06.8]} 45. Bd4 {[%clk
0:00:10.6]} 45... Bd6 {[%clk 0:02:05.8]} 46. Bf2 {[%clk 0:00:12]} 46... Rg8
{[%clk 0:02:06.3]} 47. Rg1 {[%clk 0:00:12.9]} 47... Be7 {[%clk 0:02:05.9]} 48.
Kc2 {[%clk 0:00:14]} 48... Kf5 {[%clk 0:01:57.2]} 49. Kd2 {[%clk 0:00:12.9]}
49... Bf6 {[%clk 0:01:55.2]} 50. Ke2 {[%clk 0:00:13.1]} 50... e4 {[%clk
0:01:52.5]} 0-1